Workbook

Sheet 一般公共预算
A9: 第一部分:一般公共预算

Sheet L01
A1: 2022年度沁源县一般公共预算收入表
A2: 录入01表
A3: 单位:万元
A4: 科目编码 | B4: 科目名称 | C4: 决算数
B5: 一般公共预算收入 | C5: =SUM(C6,C357) -> 306,523
A6: 101 | B6: 税收收入 | C6: =C7+C49+C69+C194+C259+C266+C271+C287+C296+C302+C311+C320+C323+C326+C329+C341+C345+C348+C351+C354 -> 248,447
A7: 10101 | B7: 增值税 | C7: =SUM(C8,C42,C46) -> 109,393
A8: 1010101 | B8: 国内增值税 | C8: =SUM(C9:C41) -> 109,393
A9: 101010101 | B9: 国有企业增值税 | C9: 336
A10: 101010102 | B10: 集体企业增值税 | C10: 67
A11: 101010103 | B11: 股份制企业增值税 | C11: 88,558
A12: 101010104 | B12: 联营企业增值税 | C12: 0
A13: 101010105 | B13: 港澳台和外商投资企业增值税 | C13: 0
A14: 101010106 | B14: 私营企业增值税 | C14: 21,299
A15: 101010117 | B15: 中国国家铁路集团有限公司改征增值税待分配收入 | C15: 0
A16: 101010118 | B16: 中国国家铁路集团有限公司改征增值税收入 | C16: 0
A17: 101010119 | B17: 其他增值税 | C17: 268
A18: 101010120 | B18: 增值税税款滞纳金、罚款收入 | C18: 54
A19: 101010121 | B19: 残疾人就业增值税退税 | C19: 0
A20: 101010122 | B20: 软件增值税退税 | C20: 0
A21: 101010125 | B21: 宣传文化单位增值税退税 | C21: 0
A22: 101010127 | B22: 核电站增值税退税 | C22: 0
A23: 101010129 | B23: 资源综合利用增值税退税 | C23: -150
A24: 101010131 | B24: 黄金增值税退税 | C24: 0
A25: 101010132 | B25: 光伏发电增值税退税 | C25: 0
A26: 101010133 | B26: 风力发电增值税退税 | C26: 0
A27: 101010134 | B27: 管道运输增值税退税 | C27: 0
A28: 101010135 | B28: 融资租赁增值税退税 | C28: 0
A29: 101010136 | B29: 增值税留抵退税 | C29: 8
A30: 101010137 | B30: 增值税留抵退税省级调库 | C30: 0
A31: 101010138 | B31: 增值税留抵退税省级以下调库 | C31: 0
A32: 101010139 | B32: 小微企业原政策增值税留抵退税 | C32: -12
A33: 101010140 | B33: 小微企业新增政策增值税留抵退税 | C33: -418
A34: 101010141 | B34: 其他企业原政策增值税留抵退税 | C34: -66
A35: 101010142 | B35: 其他企业新增政策增值税留抵退税 | C35: -551
A36: 101010150 | B36: 其他增值税退税 | C36: 0
A37: 101010151 | B37: 免抵调增增值税 | C37: 0
A38: 101010152 | B38: 成品油价格和税费改革增值税划出 | C38: 0
A39: 101010153 | B39: 成品油价格和税费改革增值税划入 | C39: 0
A40: 101010154 | B40: 跨省管道运输企业增值税 | C40: 0
A41: 101010155 | B41: 跨省管道运输企业增值税待分配收入 | C41: 0
A42: 1010102 | B42: 进口货物增值税(项) | C42: =SUM(C43:C45) -> 0
A43: 101010201 | B43: 进口货物增值税(目) | C43: 0
A44: 101010220 | B44: 进口货物增值税税款滞纳金、罚款收入 | C44: 0
A45: 101010221 | B45: 进口货物退增值税 | C45: 0
A46: 1010103 | B46: 出口业务退增值税(项) | C46: =C47+C48 -> 0
A47: 101010301 | B47: 出口业务退增值税(目) | C47: 0
A48: 101010302 | B48: 免抵调减增值税 | C48: 0
A49: 10102 | B49: 消费税 | C49: =SUM(C50,C62,C68) -> 0
A50: 1010201 | B50: 国内消费税 | C50: =SUM(C51:C61) -> 0
A51: 101020101 | B51: 国有企业消费税 | C51: 0
A52: 101020102 | B52: 集体企业消费税 | C52: 0
A53: 101020103 | B53: 股份制企业消费税 | C53: 0
A54: 101020104 | B54: 联营企业消费税 | C54: 0
A55: 101020105 | B55: 港澳台和外商投资企业消费税 | C55: 0
A56: 101020106 | B56: 私营企业消费税 | C56: 0
A57: 101020107 | B57: 成品油消费税 | C57: 0
A58: 101020119 | B58: 其他消费税 | C58: 0
A59: 101020120 | B59: 消费税税款滞纳金、罚款收入 | C59: 0
A60: 101020121 | B60: 成品油消费税退税 | C60: 0
A61: 101020129 | B61: 其他消费税退税 | C61: 0
A62: 1010202 | B62: 进口消费品消费税 | C62: =SUM(C63:C67) -> 0
A63: 101020202 | B63: 进口成品油消费税 | C63: 0
A64: 101020209 | B64: 进口其他消费品消费税 | C64: 0
A65: 101020220 | B65: 进口消费品消费税税款滞纳金、罚款收入 | C65: 0
A66: 101020221 | B66: 进口成品油消费税退税 | C66: 0
A67: 101020229 | B67: 进口其他消费品退消费税 | C67: 0
A68: 1010203 | B68: 出口消费品退消费税 | C68: 0
A69: 10104 | B69: 企业所得税 | C69: =SUM(C70:C86,C90:C95,C99,C104:C105,C109:C115,C132:C133,C136:C138,C143,C148,C153,C158,C163,C168,C173,C178,C183,C188,C192,C193) -> 64,521
A70: 1010401 | B70: 国有冶金工业所得税 | C70: 0
A71: 1010402 | B71: 国有有色金属工业所得税 | C71: 0
A72: 1010403 | B72: 国有煤炭工业所得税 | C72: 0
A73: 1010404 | B73: 国有电力工业所得税 | C73: 0
A74: 1010405 | B74: 国有石油和化学工业所得税 | C74: 0
A75: 1010406 | B75: 国有机械工业所得税 | C75: 0
A76: 1010407 | B76: 国有汽车工业所得税 | C76: 0
A77: 1010408 | B77: 国有核工业所得税 | C77: 0
A78: 1010409 | B78: 国有航空工业所得税 | C78: 0
A79: 1010410 | B79: 国有航天工业所得税 | C79: 0
A80: 1010411 | B80: 国有电子工业所得税 | C80: 0
A81: 1010412 | B81: 国有兵器工业所得税 | C81: 0
A82: 1010413 | B82: 国有船舶工业所得税 | C82: 0
A83: 1010414 | B83: 国有建筑材料工业所得税 | C83: 0
A84: 1010415 | B84: 国有烟草企业所得税 | C84: 75
A85: 1010416 | B85: 国有纺织企业所得税 | C85: 0
A86: 1010417 | B86: 国有铁道企业所得税 | C86: =SUM(C87:C89) -> 0
A87: 101041701 | B87: 中国国家铁路集团有限公司集中缴纳的铁路运输企业所得税 | C87: 0
A88: 101041702 | B88: 中国国家铁路集团有限公司集中缴纳的铁路运输企业所得税待分配收入 | C88: 0
A89: 101041709 | B89: 其他国有铁道企业所得税 | C89: 0
A90: 1010418 | B90: 国有交通企业所得税 | C90: 0
A91: 1010419 | B91: 国有邮政企业所得税 | C91: 0
A92: 1010420 | B92: 国有民航企业所得税 | C92: 0
A93: 1010421 | B93: 国有海洋石油天然气企业所得税 | C93: 0
A94: 1010422 | B94: 国有外贸企业所得税 | C94: 0
A95: 1010423 | B95: 国有银行所得税 | C95: =SUM(C96:C98) -> 0
A96: 101042303 | B96: 中国进出口银行所得税 | C96: 0
A97: 101042304 | B97: 中国农业发展银行所得税 | C97: 0
A98: 101042309 | B98: 其他国有银行所得税 | C98: 0
A99: 1010424 | B99: 国有非银行金融企业所得税 | C99: =SUM(C100:C103) -> 0
A100: 101042402 | B100: 中国建银投资有限责任公司所得税 | C100: 0
A101: 101042403 | B101: 中国投资有限责任公司所得税 | C101: 0
A102: 101042404 | B102: 中投公司所属其他公司所得税 | C102: 0
A103: 101042409 | B103: 其他国有非银行金融企业所得税 | C103: 0
A104: 1010425 | B104: 国有保险企业所得税 | C104: 0
A105: 1010426 | B105: 国有文教企业所得税 | C105: =SUM(C106:C108) -> 0
A106: 101042601 | B106: 国有电影企业所得税 | C106: 0
A107: 101042602 | B107: 国有出版企业所得税 | C107: 0
A108: 101042609 | B108: 其他国有文教企业所得税 | C108: 0
A109: 1010427 | B109: 国有水产企业所得税 | C109: 0
A110: 1010428 | B110: 国有森林工业企业所得税 | C110: 0
A111: 1010429 | B111: 国有电信企业所得税 | C111: 0
A112: 1010430 | B112: 国有农垦企业所得税 | C112: 0
A113: 1010431 | B113: 其他国有企业所得税 | C113: 41
A114: 1010432 | B114: 集体企业所得税 | C114: 17
A115: 1010433 | B115: 股份制企业所得税 | C115: =SUM(C116:C131) -> 57,139
A116: 101043302 | B116: 股份制海洋石油天然气企业所得税 | C116: 0
A117: 101043303 | B117: 中国石油天然气股份有限公司所得税 | C117: 0
A118: 101043304 | B118: 中国石油化工股份有限公司所得税 | C118: 0
A119: 101043308 | B119: 中国工商银行股份有限公司所得税 | C119: 0
A120: 101043309 | B120: 中国建设银行股份有限公司所得税 | C120: 0
A121: 101043310 | B121: 中国银行股份有限公司所得税 | C121: 0
A122: 101043312 | B122: 长江电力股份有限公司所得税 | C122: 0
A123: 101043313 | B123: 中国农业银行股份有限公司所得税 | C123: 0
A124: 101043314 | B124: 国家开发银行股份有限公司所得税 | C124: 0
A125: 101043315 | B125: 中国邮政储蓄银行股份有限公司所得税 | C125: 0
A126: 101043316 | B126: 中国信达资产管理股份有限公司所得税 | C126: 0
A127: 101043317 | B127: 跨省合资铁路企业所得税 | C127: 0
A128: 101043318 | B128: 中国华融资产管理股份有限公司所得税 | C128: 0
A129: 101043319 | B129: 中国长城资产管理公司所得税 | C129: 0
A130: 101043320 | B130: 中国东方资产管理公司所得税 | C130: 0
A131: 101043399 | B131: 其他股份制企业所得税 | C131: 57,139
A132: 1010434 | B132: 联营企业所得税 | C132: 0
A133: 1010435 | B133: 港澳台和外商投资企业所得税 | C133: =C134+C135 -> 0
A134: 101043501 | B134: 港澳台和外商投资海上石油天然气企业所得税 | C134: 0
A135: 101043509 | B135: 其他港澳台和外商投资企业所得税 | C135: 0
A136: 1010436 | B136: 私营企业所得税 | C136: 7,241
A137: 1010439 | B137: 其他企业所得税 | C137: 2
A138: 1010440 | B138: 分支机构预缴所得税 | C138: =SUM(C139:C142) -> 0
A139: 101044001 | B139: 国有企业分支机构预缴所得税 | C139: 0
A140: 101044002 | B140: 股份制企业分支机构预缴所得税 | C140: 0
A141: 101044003 | B141: 港澳台和外商投资企业分支机构预缴所得税 | C141: 0
A142: 101044099 | B142: 其他企业分支机构预缴所得税 | C142: 0
A143: 1010441 | B143: 总机构预缴所得税 | C143: =SUM(C144:C147) -> 0
A144: 101044101 | B144: 国有企业总机构预缴所得税 | C144: 0
A145: 101044102 | B145: 股份制企业总机构预缴所得税 | C145: 0
A146: 101044103 | B146: 港澳台和外商投资企业总机构预缴所得税 | C146: 0
A147: 101044199 | B147: 其他企业总机构预缴所得税 | C147: 0
A148: 1010442 | B148: 总机构汇算清缴所得税 | C148: =SUM(C149:C152) -> 0
A149: 101044201 | B149: 国有企业总机构汇算清缴所得税 | C149: 0
A150: 101044202 | B150: 股份制企业总机构汇算清缴所得税 | C150: 0
A151: 101044203 | B151: 港澳台和外商投资企业总机构汇算清缴所得税 | C151: 0
A152: 101044299 | B152: 其他企业总机构汇算清缴所得税 | C152: 0
A153: 1010443 | B153: 企业所得税待分配收入 | C153: =SUM(C154:C157) -> 0
A154: 101044301 | B154: 国有企业所得税待分配收入 | C154: 0
A155: 101044302 | B155: 股份制企业所得税待分配收入 | C155: 0
A156: 101044303 | B156: 港澳台和外商投资企业所得税待分配收入 | C156: 0
A157: 101044399 | B157: 其他企业所得税待分配收入 | C157: 0
A158: 1010444 | B158: 跨市县分支机构预缴所得税 | C158: =SUM(C159:C162) -> 0
A159: 101044401 | B159: 国有企业分支机构预缴所得税 | C159: 0
A160: 101044402 | B160: 股份制企业分支机构预缴所得税 | C160: 0
A161: 101044403 | B161: 港澳台和外商投资企业分支机构预缴所得税 | C161: 0
A162: 101044499 | B162: 其他企业分支机构预缴所得税 | C162: 0
A163: 1010445 | B163: 跨市县总机构预缴所得税 | C163: =SUM(C164:C167) -> 0
A164: 101044501 | B164: 国有企业总机构预缴所得税 | C164: 0
A165: 101044502 | B165: 股份制企业总机构预缴所得税 | C165: 0
A166: 101044503 | B166: 港澳台和外商投资企业总机构预缴所得税 | C166: 0
A167: 101044599 | B167: 其他企业总机构预缴所得税 | C167: 0
A168: 1010446 | B168: 跨市县总机构汇算清缴所得税 | C168: =SUM(C169:C172) -> 0
A169: 101044601 | B169: 国有企业总机构汇算清缴所得税 | C169: 0
A170: 101044602 | B170: 股份制企业总机构汇算清缴所得税 | C170: 0
A171: 101044603 | B171: 港澳台和外商投资企业总机构汇算清缴所得税 | C171: 0
A172: 101044699 | B172: 其他企业总机构汇算清缴所得税 | C172: 0
A173: 1010447 | B173: 省以下企业所得税待分配收入 | C173: =SUM(C174:C177) -> 0
A174: 101044701 | B174: 国有企业所得税待分配收入 | C174: 0
A175: 101044702 | B175: 股份制企业所得税待分配收入 | C175: 0
A176: 101044703 | B176: 港澳台和外商投资企业所得税待分配收入 | C176: 0
A177: 101044799 | B177: 其他企业所得税待分配收入 | C177: 0
A178: 1010448 | B178: 跨市县分支机构汇算清缴所得税 | C178: =SUM(C179:C182) -> 0
A179: 101044801 | B179: 国有企业分支机构汇算清缴所得税 | C179: 0
A180: 101044802 | B180: 股份制企业分支机构汇算清缴所得税 | C180: 0
A181: 101044803 | B181: 港澳台和外商投资企业分支机构汇算清缴所得税 | C181: 0
A182: 101044899 | B182: 其他企业分支机构汇算清缴所得税 | C182: 0
A183: 1010449 | B183: 分支机构汇算清缴所得税 | C183: =SUM(C184:C187) -> 0
A184: 101044901 | B184: 国有企业分支机构汇算清缴所得税 | C184: 0
A185: 101044902 | B185: 股份制企业分支机构汇算清缴所得税 | C185: 0
A186: 101044903 | B186: 港澳台和外商投资企业分支机构汇算清缴所得税 | C186: 0
A187: 101044999 | B187: 其他企业分支机构汇算清缴所得税 | C187: 0
A188: 1010450 | B188: 企业所得税税款滞纳金、罚款、加收利息收入 | C188: =SUM(C189:C191) -> 6
A189: 101045001 | B189: 内资企业所得税税款滞纳金、罚款、加收利息收入 | C189: 6
A190: 101045002 | B190: 港澳台和外商投资企业所得税税款滞纳金、罚款、加收利息收入 | C190: 0
A191: 101045003 | B191: 中央企业所得税税款滞纳金、罚款、加收利息收入 | C191: 0
A192: 1010451 | B192: 跨省管道运输企业所得税 | C192: 0
A193: 1010452 | B193: 跨省管道运输企业所得税待分配收入 | C193: 0
A194: 10105 | B194: 企业所得税退税 | C194: =SUM(C195:C217,C221,C224,C225,C229:C234,C246:C248,C253,C258) -> 0
A195: 1010501 | B195: 国有冶金工业所得税退税 | C195: 0
A196: 1010502 | B196: 国有有色金属工业所得税退税 | C196: 0
A197: 1010503 | B197: 国有煤炭工业所得税退税 | C197: 0
A198: 1010504 | B198: 国有电力工业所得税退税 | C198: 0
A199: 1010505 | B199: 国有石油和化学工业所得税退税 | C199: 0
A200: 1010506 | B200: 国有机械工业所得税退税 | C200: 0
... 504 more rows

Sheet L02
A1: 2022年度沁源县一般公共预算支出表
A2: 录入02表
A3: 单位：万元
A4: 科目编码 | B4: 科目名称 | C4: 决算数
B5: 一般公共预算支出 | C5: =SUM(C6,C235,C275,C294,C384,C436,C492,C549,C676,C749,C826,C849,C956,C1014,C1078,C1098,C1128,C1138,C1183,C1203,C1247,C1296,C1299,C1311) -> 355,672
A6: 201 | B6: 一般公共服务支出 | C6: =SUM(C7+C19+C28+C39+C50+C61+C72+C80+C89+C102+C111+C122+C134+C141+C149+C155+C162+C169+C176+C183+C190+C198+C204+C210+C217+C232) -> 44,945
A7: 20101 | B7: 人大事务 | C7: =SUM(C8:C18) -> 495
A8: 2010101 | B8: 行政运行 | C8: 439
A9: 2010102 | B9: 一般行政管理事务 | C9: 0
A10: 2010103 | B10: 机关服务 | C10: 0
A11: 2010104 | B11: 人大会议 | C11: 0
A12: 2010105 | B12: 人大立法 | C12: 0
A13: 2010106 | B13: 人大监督 | C13: 0
A14: 2010107 | B14: 人大代表履职能力提升 | C14: 0
A15: 2010108 | B15: 代表工作 | C15: 0
A16: 2010109 | B16: 人大信访工作 | C16: 0
A17: 2010150 | B17: 事业运行 | C17: 56
A18: 2010199 | B18: 其他人大事务支出 | C18: 0
A19: 20102 | B19: 政协事务 | C19: =SUM(C20:C27) -> 403
A20: 2010201 | B20: 行政运行 | C20: 368
A21: 2010202 | B21: 一般行政管理事务 | C21: 0
A22: 2010203 | B22: 机关服务 | C22: 0
A23: 2010204 | B23: 政协会议 | C23: 0
A24: 2010205 | B24: 委员视察 | C24: 0
A25: 2010206 | B25: 参政议政 | C25: 0
A26: 2010250 | B26: 事业运行 | C26: 35
A27: 2010299 | B27: 其他政协事务支出 | C27: 0
A28: 20103 | B28: 政府办公厅(室)及相关机构事务 | C28: =SUM(C29:C38) -> 15,262
A29: 2010301 | B29: 行政运行 | C29: 7,456
A30: 2010302 | B30: 一般行政管理事务 | C30: 924
A31: 2010303 | B31: 机关服务 | C31: 0
A32: 2010304 | B32: 专项服务 | C32: 0
A33: 2010305 | B33: 专项业务及机关事务管理 | C33: 0
A34: 2010306 | B34: 政务公开审批 | C34: 0
A35: 2010308 | B35: 信访事务 | C35: 344
A36: 2010309 | B36: 参事事务 | C36: 0
A37: 2010350 | B37: 事业运行 | C37: 4,128
A38: 2010399 | B38: 其他政府办公厅(室)及相关机构事务支出 | C38: 2,410
A39: 20104 | B39: 发展与改革事务 | C39: =SUM(C40:C49) -> 3,816
A40: 2010401 | B40: 行政运行 | C40: 225
A41: 2010402 | B41: 一般行政管理事务 | C41: 0
A42: 2010403 | B42: 机关服务 | C42: 0
A43: 2010404 | B43: 战略规划与实施 | C43: 0
A44: 2010405 | B44: 日常经济运行调节 | C44: 0
A45: 2010406 | B45: 社会事业发展规划 | C45: 0
A46: 2010407 | B46: 经济体制改革研究 | C46: 0
A47: 2010408 | B47: 物价管理 | C47: 0
A48: 2010450 | B48: 事业运行 | C48: 0
A49: 2010499 | B49: 其他发展与改革事务支出 | C49: 3,591
A50: 20105 | B50: 统计信息事务 | C50: =SUM(C51:C60) -> 269
A51: 2010501 | B51: 行政运行 | C51: 76
A52: 2010502 | B52: 一般行政管理事务 | C52: 0
A53: 2010503 | B53: 机关服务 | C53: 0
A54: 2010504 | B54: 信息事务 | C54: 0
A55: 2010505 | B55: 专项统计业务 | C55: 128
A56: 2010506 | B56: 统计管理 | C56: 0
A57: 2010507 | B57: 专项普查活动 | C57: 12
A58: 2010508 | B58: 统计抽样调查 | C58: 2
A59: 2010550 | B59: 事业运行 | C59: 51
A60: 2010599 | B60: 其他统计信息事务支出 | C60: 0
A61: 20106 | B61: 财政事务 | C61: =SUM(C62:C71) -> 2,193
A62: 2010601 | B62: 行政运行 | C62: 174
A63: 2010602 | B63: 一般行政管理事务 | C63: 0
A64: 2010603 | B64: 机关服务 | C64: 0
A65: 2010604 | B65: 预算改革业务 | C65: 0
A66: 2010605 | B66: 财政国库业务 | C66: 10
A67: 2010606 | B67: 财政监察 | C67: 0
A68: 2010607 | B68: 信息化建设 | C68: 126
A69: 2010608 | B69: 财政委托业务支出 | C69: 351
A70: 2010650 | B70: 事业运行 | C70: 208
A71: 2010699 | B71: 其他财政事务支出 | C71: 1,324
A72: 20107 | B72: 税收事务 | C72: =SUM(C73:C79) -> 1,323
A73: 2010701 | B73: 行政运行 | C73: 1,323
A74: 2010702 | B74: 一般行政管理事务 | C74: 0
A75: 2010703 | B75: 机关服务 | C75: 0
A76: 2010709 | B76: 信息化建设 | C76: 0
A77: 2010710 | B77: 税收业务 | C77: 0
A78: 2010750 | B78: 事业运行 | C78: 0
A79: 2010799 | B79: 其他税收事务支出 | C79: 0
A80: 20108 | B80: 审计事务 | C80: =SUM(C81:C88) -> 241
A81: 2010801 | B81: 行政运行 | C81: 221
A82: 2010802 | B82: 一般行政管理事务 | C82: 0
A83: 2010803 | B83: 机关服务 | C83: 0
A84: 2010804 | B84: 审计业务 | C84: 3
A85: 2010805 | B85: 审计管理 | C85: 0
A86: 2010806 | B86: 信息化建设 | C86: 0
A87: 2010850 | B87: 事业运行 | C87: 17
A88: 2010899 | B88: 其他审计事务支出 | C88: 0
A89: 20109 | B89: 海关事务 | C89: =SUM(C90:C101) -> 0
A90: 2010901 | B90: 行政运行 | C90: 0
A91: 2010902 | B91: 一般行政管理事务 | C91: 0
A92: 2010903 | B92: 机关服务 | C92: 0
A93: 2010905 | B93: 缉私办案 | C93: 0
A94: 2010907 | B94: 口岸管理 | C94: 0
A95: 2010908 | B95: 信息化建设 | C95: 0
A96: 2010909 | B96: 海关关务 | C96: 0
A97: 2010910 | B97: 关税征管 | C97: 0
A98: 2010911 | B98: 海关监管 | C98: 0
A99: 2010912 | B99: 检验检疫 | C99: 0
A100: 2010950 | B100: 事业运行 | C100: 0
A101: 2010999 | B101: 其他海关事务支出 | C101: 0
A102: 20111 | B102: 纪检监察事务 | C102: =SUM(C103:C110) -> 921
A103: 2011101 | B103: 行政运行 | C103: 838
A104: 2011102 | B104: 一般行政管理事务 | C104: 13
A105: 2011103 | B105: 机关服务 | C105: 0
A106: 2011104 | B106: 大案要案查处 | C106: 0
A107: 2011105 | B107: 派驻派出机构 | C107: 0
A108: 2011106 | B108: 巡视工作 | C108: 0
A109: 2011150 | B109: 事业运行 | C109: 70
A110: 2011199 | B110: 其他纪检监察事务支出 | C110: 0
A111: 20113 | B111: 商贸事务 | C111: =SUM(C112:C121) -> 7,026
A112: 2011301 | B112: 行政运行 | C112: 89
A113: 2011302 | B113: 一般行政管理事务 | C113: 0
A114: 2011303 | B114: 机关服务 | C114: 0
A115: 2011304 | B115: 对外贸易管理 | C115: 0
A116: 2011305 | B116: 国际经济合作 | C116: 0
A117: 2011306 | B117: 外资管理 | C117: 0
A118: 2011307 | B118: 国内贸易管理 | C118: 0
A119: 2011308 | B119: 招商引资 | C119: 6,640
A120: 2011350 | B120: 事业运行 | C120: 0
A121: 2011399 | B121: 其他商贸事务支出 | C121: 297
A122: 20114 | B122: 知识产权事务 | C122: =SUM(C123:C133) -> 0
A123: 2011401 | B123: 行政运行 | C123: 0
A124: 2011402 | B124: 一般行政管理事务 | C124: 0
A125: 2011403 | B125: 机关服务 | C125: 0
A126: 2011404 | B126: 专利审批 | C126: 0
A127: 2011405 | B127: 知识产权战略和规划 | C127: 0
A128: 2011408 | B128: 国际合作与交流 | C128: 0
A129: 2011409 | B129: 知识产权宏观管理 | C129: 0
A130: 2011410 | B130: 商标管理 | C130: 0
A131: 2011411 | B131: 原产地地理标志管理 | C131: 0
A132: 2011450 | B132: 事业运行 | C132: 0
A133: 2011499 | B133: 其他知识产权事务支出 | C133: 0
A134: 20123 | B134: 民族事务 | C134: =SUM(C135:C140) -> 0
A135: 2012301 | B135: 行政运行 | C135: 0
A136: 2012302 | B136: 一般行政管理事务 | C136: 0
A137: 2012303 | B137: 机关服务 | C137: 0
A138: 2012304 | B138: 民族工作专项 | C138: 0
A139: 2012350 | B139: 事业运行 | C139: 0
A140: 2012399 | B140: 其他民族事务支出 | C140: 0
A141: 20125 | B141: 港澳台事务 | C141: =SUM(C142:C148) -> 0
A142: 2012501 | B142: 行政运行 | C142: 0
A143: 2012502 | B143: 一般行政管理事务 | C143: 0
A144: 2012503 | B144: 机关服务 | C144: 0
A145: 2012504 | B145: 港澳事务 | C145: 0
A146: 2012505 | B146: 台湾事务 | C146: 0
A147: 2012550 | B147: 事业运行 | C147: 0
A148: 2012599 | B148: 其他港澳台事务支出 | C148: 0
A149: 20126 | B149: 档案事务 | C149: =SUM(C150:C154) -> 1,078
A150: 2012601 | B150: 行政运行 | C150: 89
A151: 2012602 | B151: 一般行政管理事务 | C151: 0
A152: 2012603 | B152: 机关服务 | C152: 0
A153: 2012604 | B153: 档案馆 | C153: 727
A154: 2012699 | B154: 其他档案事务支出 | C154: 262
A155: 20128 | B155: 民主党派及工商联事务 | C155: =SUM(C156:C161) -> 46
A156: 2012801 | B156: 行政运行 | C156: 46
A157: 2012802 | B157: 一般行政管理事务 | C157: 0
A158: 2012803 | B158: 机关服务 | C158: 0
A159: 2012804 | B159: 参政议政 | C159: 0
A160: 2012850 | B160: 事业运行 | C160: 0
A161: 2012899 | B161: 其他民主党派及工商联事务支出 | C161: 0
A162: 20129 | B162: 群众团体事务 | C162: =SUM(C163:C168) -> 139
A163: 2012901 | B163: 行政运行 | C163: 139
A164: 2012902 | B164: 一般行政管理事务 | C164: 0
A165: 2012903 | B165: 机关服务 | C165: 0
A166: 2012906 | B166: 工会事务 | C166: 0
A167: 2012950 | B167: 事业运行 | C167: 0
A168: 2012999 | B168: 其他群众团体事务支出 | C168: 0
A169: 20131 | B169: 党委办公厅(室)及相关机构事务 | C169: =SUM(C170:C175) -> 386
A170: 2013101 | B170: 行政运行 | C170: 266
A171: 2013102 | B171: 一般行政管理事务 | C171: 0
A172: 2013103 | B172: 机关服务 | C172: 0
A173: 2013105 | B173: 专项业务 | C173: 0
A174: 2013150 | B174: 事业运行 | C174: 120
A175: 2013199 | B175: 其他党委办公厅(室)及相关机构事务支出 | C175: 0
A176: 20132 | B176: 组织事务 | C176: =SUM(C177:C182) -> 1,201
A177: 2013201 | B177: 行政运行 | C177: 309
A178: 2013202 | B178: 一般行政管理事务 | C178: 0
A179: 2013203 | B179: 机关服务 | C179: 0
A180: 2013204 | B180: 公务员事务 | C180: 0
A181: 2013250 | B181: 事业运行 | C181: 84
A182: 2013299 | B182: 其他组织事务支出 | C182: 808
A183: 20133 | B183: 宣传事务 | C183: =SUM(C184:C189) -> 978
A184: 2013301 | B184: 行政运行 | C184: 654
A185: 2013302 | B185: 一般行政管理事务 | C185: 0
A186: 2013303 | B186: 机关服务 | C186: 0
A187: 2013304 | B187: 宣传管理 | C187: 0
A188: 2013350 | B188: 事业运行 | C188: 65
A189: 2013399 | B189: 其他宣传事务支出 | C189: 259
A190: 20134 | B190: 统战事务 | C190: =SUM(C191:C197) -> 94
A191: 2013401 | B191: 行政运行 | C191: 81
A192: 2013402 | B192: 一般行政管理事务 | C192: 0
A193: 2013403 | B193: 机关服务 | C193: 0
A194: 2013404 | B194: 宗教事务 | C194: 0
A195: 2013405 | B195: 华侨事务 | C195: 0
A196: 2013450 | B196: 事业运行 | C196: 13
A197: 2013499 | B197: 其他统战事务支出 | C197: 0
A198: 20135 | B198: 对外联络事务 | C198: =SUM(C199:C203) -> 0
A199: 2013501 | B199: 行政运行 | C199: 0
A200: 2013502 | B200: 一般行政管理事务 | C200: 0
... 1114 more rows

Sheet L03
A1: 2022年度沁源县一般公共预算税收返还和转移支付表
A2: 录入03表
A3: 单位：万元
A4: 项目 | B4: 决 算 数 | C4: 项目 | D4: 决 算 数
A5: 一般公共预算收入 | B5: ='L01'!C5 -> 306,523 | C5: 一般公共预算支出 | D5: ='L02'!C5 -> 355,672
A6: 上级补助收入 | B6: =SUM(B7,B14,B53) -> 102,166 | C6: 补助下级支出 | D6: =SUM(D7,D14,D53) -> 0
A7: 返还性收入 | B7: =SUM(B8:B13) -> -340 | C7: 返还性支出 | D7: =SUM(D8:D13) -> 0
A8: 所得税基数返还收入 | B8: 733 | C8: 所得税基数返还支出 | D8: 0
A9: 成品油税费改革税收返还收入 | B9: 287 | C9: 成品油税费改革税收返还支出 | D9: 0
A10: 增值税税收返还收入 | B10: 2,141 | C10: 增值税税收返还支出 | D10: 0
A11: 消费税税收返还收入 | B11: 0 | C11: 消费税税收返还支出 | D11: 0
A12: 增值税“五五分享”税收返还收入 | B12: -3,501 | C12: 增值税“五五分享”税收返还支出 | D12: 0
A13: 其他返还性收入 | B13: 0 | C13: 其他返还性支出 | D13: 0
A14: 一般性转移支付收入 | B14: =SUM(B15:B52) -> 85,906 | C14: 一般性转移支付支出 | D14: =SUM(D15:D52) -> 0
A15: 体制补助收入 | B15: 0 | C15: 体制补助支出 | D15: 0
A16: 均衡性转移支付收入 | B16: 9,159 | C16: 均衡性转移支付支出 | D16: 0
A17: 县级基本财力保障机制奖补资金收入 | B17: 4,458 | C17: 县级基本财力保障机制奖补资金支出 | D17: 0
A18: 结算补助收入 | B18: 826 | C18: 结算补助支出 | D18: 0
A19: 资源枯竭型城市转移支付补助收入 | B19: 920 | C19: 资源枯竭型城市转移支付补助支出 | D19: 0
A20: 企业事业单位划转补助收入 | B20: 0 | C20: 企业事业单位划转补助支出 | D20: 0
A21: 产粮(油)大县奖励资金收入 | B21: 0 | C21: 产粮(油)大县奖励资金支出 | D21: 0
A22: 重点生态功能区转移支付收入 | B22: 187 | C22: 重点生态功能区转移支付支出 | D22: 0
A23: 固定数额补助收入 | B23: 9,031 | C23: 固定数额补助支出 | D23: 0
A24: 革命老区转移支付收入 | B24: 1,237 | C24: 革命老区转移支付支出 | D24: 0
A25: 民族地区转移支付收入 | B25: 0 | C25: 民族地区转移支付支出 | D25: 0
A26: 边境地区转移支付收入 | B26: 0 | C26: 边境地区转移支付支出 | D26: 0
A27: 欠发达地区转移支付收入 | B27: 2,462 | C27: 欠发达地区转移支付支出 | D27: 0
A28: 一般公共服务共同财政事权转移支付收入 | B28: 0 | C28: 一般公共服务共同财政事权转移支付支出 | D28: 0
A29: 外交共同财政事权转移支付收入 | B29: 0 | C29: 外交共同财政事权转移支付支出 | D29: 0
A30: 国防共同财政事权转移支付收入 | B30: 0 | C30: 国防共同财政事权转移支付支出 | D30: 0
A31: 公共安全共同财政事权转移支付收入 | B31: 894 | C31: 公共安全共同财政事权转移支付支出 | D31: 0
A32: 教育共同财政事权转移支付收入 | B32: 3,710 | C32: 教育共同财政事权转移支付支出 | D32: 0
A33: 科学技术共同财政事权转移支付收入 | B33: 0 | C33: 科学技术共同财政事权转移支付支出 | D33: 0
A34: 文化旅游体育与传媒共同财政事权转移支付收入 | B34: 453 | C34: 文化旅游体育与传媒共同财政事权转移支付支出 | D34: 0
A35: 社会保障和就业共同财政事权转移支付收入 | B35: 10,366 | C35: 社会保障和就业共同财政事权转移支付支出 | D35: 0
A36: 医疗卫生共同财政事权转移支付收入 | B36: 2,475 | C36: 医疗卫生共同财政事权转移支付支出 | D36: 0
A37: 节能环保共同财政事权转移支付收入 | B37: 834 | C37: 节能环保共同财政事权转移支付支出 | D37: 0
A38: 城乡社区共同财政事权转移支付收入 | B38: 0 | C38: 城乡社区共同财政事权转移支付支出 | D38: 0
A39: 农林水共同财政事权转移支付收入 | B39: 13,589 | C39: 农林水共同财政事权转移支付支出 | D39: 0
A40: 交通运输共同财政事权转移支付收入 | B40: 16,357 | C40: 交通运输共同财政事权转移支付支出 | D40: 0
A41: 资源勘探工业信息等共同财政事权转移支付收入 | B41: 0 | C41: 资源勘探工业信息等共同财政事权转移支付支出 | D41: 0
A42: 商业服务业等共同财政事权转移支付收入 | B42: 913 | C42: 商业服务业等共同财政事权转移支付支出 | D42: 0
A43: 金融共同财政事权转移支付收入 | B43: 0 | C43: 金融共同财政事权转移支付支出 | D43: 0
A44: 自然资源海洋气象等共同财政事权转移支付收入 | B44: 0 | C44: 自然资源海洋气象等共同财政事权转移支付支出 | D44: 0
A45: 住房保障共同财政事权转移支付收入 | B45: 96 | C45: 住房保障共同财政事权转移支付支出 | D45: 0
A46: 粮油物资储备共同财政事权转移支付收入 | B46: 0 | C46: 粮油物资储备共同财政事权转移支付支出 | D46: 0
A47: 灾害防治及应急管理共同财政事权转移支付收入 | B47: 25 | C47: 灾害防治及应急管理共同财政事权转移支付支出 | D47: 0
A48: 其他共同财政事权转移支付收入 | B48: 0 | C48: 其他共同财政事权转移支付支出 | D48: 0
A49: 增值税留抵退税转移支付收入 | B49: 326 | C49: 增值税留抵退税转移支付支出 | D49: 0
A50: 其他退税减税降费转移支付收入 | B50: 1,096 | C50: 其他退税减税降费转移支付支出 | D50: 0
A51: 补充县区财力转移支付收入 | B51: 5,932 | C51: 补充县区财力转移支付支出 | D51: 0
A52: 其他一般性转移支付收入 | B52: 560 | C52: 其他一般性转移支付支出 | D52: 0
A53: 专项转移支付收入 | B53: =SUM(B54:B74) -> 16,600 | C53: 专项转移支付支出 | D53: =SUM(D54:D74) -> 0
A54: 一般公共服务 | B54: 461 | C54: 一般公共服务 | D54: 0
A55: 外交 | B55: 0 | C55: 外交 | D55: 0
A56: 国防 | B56: 0 | C56: 国防 | D56: 0
A57: 公共安全 | B57: 31 | C57: 公共安全 | D57: 0
A58: 教育 | B58: 0 | C58: 教育 | D58: 0
A59: 科学技术 | B59: 100 | C59: 科学技术 | D59: 0
A60: 文化旅游体育与传媒 | B60: 126 | C60: 文化旅游体育与传媒 | D60: 0
A61: 社会保障和就业 | B61: 12 | C61: 社会保障和就业 | D61: 0
A62: 卫生健康 | B62: 255 | C62: 卫生健康 | D62: 0
A63: 节能环保 | B63: 2,442 | C63: 节能环保 | D63: 0
A64: 城乡社区 | B64: 3,368 | C64: 城乡社区 | D64: 0
A65: 农林水 | B65: 5,589 | C65: 农林水 | D65: 0
A66: 交通运输 | B66: 1,996 | C66: 交通运输 | D66: 0
A67: 资源勘探工业信息等 | B67: 557 | C67: 资源勘探工业信息等 | D67: 0
A68: 商业服务业等 | B68: 451 | C68: 商业服务业等 | D68: 0
A69: 金融 | B69: 0 | C69: 金融 | D69: 0
A70: 自然资源海洋气象等 | B70: 0 | C70: 自然资源海洋气象等 | D70: 0
A71: 住房保障 | B71: 720 | C71: 住房保障 | D71: 0
A72: 粮油物资储备 | B72: 0 | C72: 粮油物资储备 | D72: 0
A73: 灾害防治及应急管理 | B73: 22 | C73: 灾害防治及应急管理 | D73: 0
A74: 其他收入 | B74: 470 | C74: 其他支出 | D74: 0
A75: 下级上解收入 | B75: =SUM(B76:B77) -> 0 | C75: 上解上级支出 | D75: =SUM(D76:D77) -> 5,043
A76: 体制上解收入 | B76: 0 | C76: 体制上解支出 | D76: 0
A77: 专项上解收入 | B77: 0 | C77: 专项上解支出 | D77: 5,043
A78: 待偿债再融资一般债券上年结余 | B78: 0
A79: 上年结余收入 | B79: 25,781
A80: 调入资金 | B80: =SUM(B81:B83) -> 566 | C80: 调出资金 | D80: 0
A81: 从政府性基金预算调入 | B81: 566
A82: 从国有资本经营预算调入 | B82: 0
A83: 从其他资金调入 | B83: 0
A84: 债务收入 | B84: =B85 -> 0 | C84: 债务还本支出 | D84: =D85 -> 0
A85: 地方政府债务收入 | B85: =B86 -> 0 | C85: 地方政府一般债务还本支出 | D85: =SUM(D86:D89) -> 0
A86: 一般债务收入 | B86: =SUM(B87:B90) -> 0 | C86: 地方政府一般债券还本支出 | D86: 0
A87: 地方政府一般债券收入 | B87: 0 | C87: 地方政府向外国政府借款还本支出 | D87: 0
A88: 地方政府向外国政府借款收入 | B88: 0 | C88: 地方政府向国际组织借款还本支出 | D88: 0
A89: 地方政府向国际组织借款收入 | B89: 0 | C89: 地方政府其他一般债务还本支出 | D89: 0
A90: 地方政府其他一般债务收入 | B90: 0
A91: 债务转贷收入 | B91: =B92 -> 2,859 | C91: 债务转贷支出 | D91: =SUM(D92:D95) -> 0
A92: 地方政府一般债务转贷收入 | B92: =SUM(B93:B96) -> 2,859 | C92: 地方政府一般债券转贷支出 | D92: 0
A93: 地方政府一般债券转贷收入 | B93: 2,859 | C93: 地方政府向外国政府借款转贷支出 | D93: 0
A94: 地方政府向外国政府借款转贷收入 | B94: 0 | C94: 地方政府向国际组织借款转贷支出 | D94: 0
A95: 地方政府向国际组织借款转贷收入 | B95: 0 | C95: 地方政府其他一般债务转贷支出 | D95: 0
A96: 地方政府其他一般债务转贷收入 | B96: 0
A97: 国债转贷收入 | B97: 0 | C97: 补充预算周转金 | D97: 0
A98: 国债转贷资金上年结余 | B98: 0 | C98: 拨付国债转贷资金数 | D98: 0
A99: 国债转贷转补助数 | B99: 0 | C99: 国债转贷资金结余 | D99: 0
A100: 动用预算稳定调节基金 | B100: 12,458 | C100: 安排预算稳定调节基金 | D100: 60,177
A101: 区域间转移性收入 | B101: =SUM(B102,B106,B110,B114) -> 0 | C101: 区域间转移性支出 | D101: =SUM(D102,D106,D110,D114) -> 0
A102: 接受其他地区援助收入 | B102: =SUM(B103:B105) -> 0 | C102: 援助其他地区支出 | D102: =SUM(D103:D105) -> 0
A103: 接受其他省(自治区、直辖市、计划单列市)援助收入 | B103: 0 | C103: 援助其他省(自治区、直辖市、计划单列市)支出 | D103: 0
A104: 接受省内其他地市(区)援助收入 | B104: 0 | C104: 援助省内其他地市(区)支出 | D104: 0
A105: 接受市内其他县市(区)援助收入 | B105: 0 | C105: 援助市内其他县市(区)支出 | D105: 0
A106: 生态保护补偿转移性收入 | B106: =SUM(B107:B109) -> 0 | C106: 生态保护补偿转移性支出 | D106: =SUM(D107:D109) -> 0
A107: 其他省(自治区、直辖市、计划单列市)横向生态保护补偿转移性收入 | B107: 0 | C107: 其他省(自治区、直辖市、计划单列市)横向生态保护补偿转移性支出 | D107: 0
A108: 省内其他地市(区)横向生态保护补偿转移性收入 | B108: 0 | C108: 省内其他地市(区)横向生态保护补偿转移性支出 | D108: 0
A109: 市内其他县市(区)横向生态保护补偿转移性收入 | B109: 0 | C109: 市内其他县市(区)横向生态保护补偿转移性支出 | D109: 0
A110: 土地指标调剂转移性收入 | B110: =SUM(B111:B113) -> 0 | C110: 土地指标调剂转移性支出 | D110: =SUM(D111:D113) -> 0
A111: 其他省(自治区、直辖市、计划单列市)横向土地指标调剂转移性收入 | B111: 0 | C111: 其他省(自治区、直辖市、计划单列市)横向土地指标调剂转移性支出 | D111: 0
A112: 省内其他地市(区)横向土地指标调剂转移性收入 | B112: 0 | C112: 省内其他地市(区)横向土地指标调剂转移性支出 | D112: 0
A113: 市内其他县市(区)横向土地指标调剂转移性收入 | B113: 0 | C113: 市内其他县市(区)横向土地指标调剂转移性支出 | D113: 0
A114: 其他转移性收入 | B114: =SUM(B115:B117) -> 0 | C114: 其他转移性支出 | D114: =SUM(D115:D117) -> 0
A115: 其他省(自治区、直辖市、计划单列市)其他转移性收入 | B115: 0 | C115: 其他省(自治区、直辖市、计划单列市)其他转移性支出 | D115: 0
A116: 省内其他地市(区)其他转移性收入 | B116: 0 | C116: 省内其他地市(区)其他转移性支出 | D116: 0
A117: 市内其他县市(区)其他转移性收入 | B117: 0 | C117: 市内其他县市(区)其他转移性支出 | D117: 0
A118: 省补助计划单列市收入 | B118: 0 | C118: 计划单列市上解省支出 | D118: 0
A119: 计划单列市上解省收入 | B119: 0 | C119: 省补助计划单列市支出 | D119: 0
C120: 待偿债再融资一般债券结余 | D120: 0
C121: 年终结余 | D121: =B124-D5-D6-D75-D80-D84-D91-D97-D98-D99-D100-D101-D118-D119-D120 -> 29,461
C122: 减:结转下年的支出 | D122: 29,461
C123: 净结余 | D123: =D121-D122 -> 0
A124: 收 入 总 计 | B124: =SUM(B5:B6,B75,B78:B80,B84,B91,B97:B101,B118:B119) -> 450,353 | C124: 支 出 总 计 | D124: =SUM(D5:D6,D75,D80,D84,D91,D97:D101,D118:D121) -> 450,353

Sheet L04
A1: 2022年度沁源县地方政府一般债务限额和余额情况表
A2: 录入04表
A3: 单位:万元
A4: 项目 | B4: 一般债务
B5: 小计 | C5: 一般债券 | D5: 向外国政府借款 | E5: 向国际组织借款 | F5: 其他一般债务
A6: 上年末地方政府债务余额 | B6: =SUM(C6:F6) -> 15,641 | C6: 15,322 | D6: 0 | E6: 319 | F6: 0
A7: 本年地方政府债务余额限额(预算数) | B7: 18,500
A8: 本年地方政府债务(转贷)收入 | B8: =SUM(C8:E8) -> 2,859 | C8: 2,859 | D8: 0 | E8: 0
A9: 本年地方政府债务还本支出 | B9: =SUM(C9:F9) -> 0 | C9: 0 | D9: 0 | E9: 0 | F9: 0
A10: 本年采用其他方式化解的债务本金 | B10: =SUM(C10:F10) -> 0 | C10: 0 | D10: 0 | E10: 0 | F10: 0
A11: 年末地方政府债务余额 | B11: =SUM(C11:F11) -> 18,500 | C11: =C6+C8-C9-C10 -> 18,181 | D11: =D6+D8-D9-D10 -> 0 | E11: =E6+E8-E9-E10 -> 319 | F11: =F6-F9-F10 -> 0

Sheet 政府性基金预算
A9: 第二部分:政府性基金预算

Sheet L05
A1: 2022年度沁源县政府性基金收入表
C2: 录入05表
C3: 单位:万元
A4: 科目编码 | B4: 科目名称 | C4: 决算数
B5: 政府性基金预算收入 | C5: =SUM(C6,C56) -> 28,209
A6: 10301 | B6: 政府性基金收入(款) | C6: =SUM(C7,C10:C17,C23:C24,C27:C30,C33:C35,C38:C42,C45:C46,C54:C55) -> 28,209
A7: 1030102 | B7: 农网还贷资金收入 | C7: =SUM(C8:C9) -> 0
A8: 103010201 | B8: 中央农网还贷资金收入 | C8: 0
A9: 103010202 | B9: 地方农网还贷资金收入 | C9: 0
A10: 1030106 | B10: 铁路建设基金收入 | C10: 0
A11: 1030110 | B11: 民航发展基金收入 | C11: 0
A12: 1030112 | B12: 海南省高等级公路车辆通行附加费收入 | C12: 0
A13: 1030121 | B13: 旅游发展基金收入 | C13: 0
A14: 1030129 | B14: 国家电影事业发展专项资金收入 | C14: 0
A15: 1030146 | B15: 国有土地收益基金收入 | C15: 0
A16: 1030147 | B16: 农业土地开发资金收入 | C16: 0
A17: 1030148 | B17: 国有土地使用权出让收入 | C17: =SUM(C18:C22) -> 28,209
A18: 103014801 | B18: 土地出让价款收入 | C18: 27,590
A19: 103014802 | B19: 补缴的土地价款 | C19: 758
A20: 103014803 | B20: 划拨土地收入 | C20: 0
A21: 103014898 | B21: 缴纳新增建设用地土地有偿使用费 | C21: -532
A22: 103014899 | B22: 其他土地出让收入 | C22: 393
A23: 1030149 | B23: 大中型水库移民后期扶持基金收入 | C23: 0
A24: 1030150 | B24: 大中型水库库区基金收入 | C24: =SUM(C25:C26) -> 0
A25: 103015001 | B25: 中央大中型水库库区基金收入 | C25: 0
A26: 103015002 | B26: 地方大中型水库库区基金收入 | C26: 0
A27: 1030152 | B27: 三峡水库库区基金收入 | C27: 0
A28: 1030153 | B28: 中央特别国债经营基金收入 | C28: 0
A29: 1030154 | B29: 中央特别国债经营基金财务收入 | C29: 0
A30: 1030155 | B30: 彩票公益金收入 | C30: =SUM(C31:C32) -> 0
A31: 103015501 | B31: 福利彩票公益金收入 | C31: 0
A32: 103015502 | B32: 体育彩票公益金收入 | C32: 0
A33: 1030156 | B33: 城市基础设施配套费收入 | C33: 0
A34: 1030157 | B34: 小型水库移民扶助基金收入 | C34: 0
A35: 1030158 | B35: 国家重大水利工程建设基金收入 | C35: =SUM(C36:C37) -> 0
A36: 103015801 | B36: 中央重大水利工程建设资金 | C36: 0
A37: 103015803 | B37: 地方重大水利工程建设资金 | C37: 0
A38: 1030159 | B38: 车辆通行费 | C38: 0
A39: 1030166 | B39: 核电站乏燃料处理处置基金收入 | C39: 0
A40: 1030168 | B40: 可再生能源电价附加收入 | C40: 0
A41: 1030171 | B41: 船舶油污损害赔偿基金收入 | C41: 0
A42: 1030175 | B42: 废弃电器电子产品处理基金收入 | C42: =SUM(C43:C44) -> 0
A43: 103017501 | B43: 税务部门征收的废弃电器电子产品处理基金收入 | C43: 0
A44: 103017502 | B44: 海关征收的废弃电器电子产品处理基金收入 | C44: 0
A45: 1030178 | B45: 污水处理费收入 | C45: 0
A46: 1030180 | B46: 彩票发行机构和彩票销售机构的业务费用 | C46: =SUM(C47:C53) -> 0
A47: 103018001 | B47: 福利彩票发行机构的业务费用 | C47: 0
A48: 103018002 | B48: 体育彩票发行机构的业务费用 | C48: 0
A49: 103018003 | B49: 福利彩票销售机构的业务费用 | C49: 0
A50: 103018004 | B50: 体育彩票销售机构的业务费用 | C50: 0
A51: 103018005 | B51: 彩票兑奖周转金 | C51: 0
A52: 103018006 | B52: 彩票发行销售风险基金 | C52: 0
A53: 103018007 | B53: 彩票市场调控资金收入 | C53: 0
A54: 1030181 | B54: 抗疫特别国债财务基金收入 | C54: 0
A55: 1030199 | B55: 其他政府性基金收入 | C55: 0
A56: 10310 | B56: 专项债务对应项目专项收入 | C56: =SUM(C57:C59,C63:C68,C71:C72) -> 0
A57: 1031003 | B57: 海南省高等级公路车辆通行附加费专项债务对应项目专项收入 | C57: 0
A58: 1031005 | B58: 国家电影事业发展专项资金专项债务对应项目专项收入 | C58: 0
A59: 1031006 | B59: 国有土地使用权出让金专项债务对应项目专项收入 | C59: =SUM(C60:C62) -> 0
A60: 103100601 | B60: 土地储备专项债券对应项目专项收入 | C60: 0
A61: 103100602 | B61: 棚户区改造专项债券对应项目专项收入 | C61: 0
A62: 103100699 | B62: 其他国有土地使用权出让金专项债务对应项目专项收入 | C62: 0
A63: 1031008 | B63: 农业土地开发资金专项债务对应项目专项收入 | C63: 0
A64: 1031009 | B64: 大中型水库库区基金专项债务对应项目专项收入 | C64: 0
A65: 1031010 | B65: 城市基础设施配套费专项债务对应项目专项收入 | C65: 0
A66: 1031011 | B66: 小型水库移民扶助基金专项债务对应项目专项收入 | C66: 0
A67: 1031012 | B67: 国家重大水利工程建设基金专项债务对应项目专项收入 | C67: 0
A68: 1031013 | B68: 车辆通行费专项债务对应项目专项收入 | C68: =SUM(C69:C70) -> 0
A69: 103101301 | B69: 政府收费公路专项债券对应项目专项收入 | C69: 0
A70: 103101399 | B70: 其他车辆通行费专项债务对应项目专项收入 | C70: 0
A71: 1031014 | B71: 污水处理费专项债务对应项目专项收入 | C71: 0
A72: 1031099 | B72: 其他政府性基金专项债务对应项目专项收入 | C72: =SUM(C73:C74) -> 0
A73: 103109998 | B73: 其他地方自行试点项目收益专项债券对应项目专项收入 | C73: 0
A74: 103109999 | B74: 其他政府性基金专项债务对应项目专项收入 | C74: 0

Sheet L06
A1: 2022年度沁源县政府性基金支出表
C2: 录入06表
C3: 单位:万元
A4: 科目编码 | B4: 科目名称 | C4: 决算数
B5: 政府性基金预算支出 | C5: =SUM(C6,C14,C30,C42,C53,C111,C135,C178,C183,C187,C214,C231,C248) -> 107,593
A6: 206 | B6: 科学技术支出 | C6: =C7 -> 0
A7: 20610 | B7: 核电站乏燃料处理处置基金支出 | C7: =SUM(C8:C13) -> 0
A8: 2061001 | B8: 乏燃料运输 | C8: 0
A9: 2061002 | B9: 乏燃料离堆贮存 | C9: 0
A10: 2061003 | B10: 乏燃料后处理 | C10: 0
A11: 2061004 | B11: 高放废物的处理处置 | C11: 0
A12: 2061005 | B12: 乏燃料后处理厂的建设、运行、改造和退役 | C12: 0
A13: 2061099 | B13: 其他乏燃料处理处置基金支出 | C13: 0
A14: 207 | B14: 文化旅游体育与传媒支出 | C14: =SUM(C15,C21,C27) -> 0
A15: 20707 | B15: 国家电影事业发展专项资金安排的支出 | C15: =SUM(C16:C20) -> 0
A16: 2070701 | B16: 资助国产影片放映 | C16: 0
A17: 2070702 | B17: 资助影院建设 | C17: 0
A18: 2070703 | B18: 资助少数民族语电影译制 | C18: 0
A19: 2070704 | B19: 购买农村电影公益性放映版权服务 | C19: 0
A20: 2070799 | B20: 其他国家电影事业发展专项资金支出 | C20: 0
A21: 20709 | B21: 旅游发展基金支出 | C21: =SUM(C22:C26) -> 0
A22: 2070901 | B22: 宣传促销 | C22: 0
A23: 2070902 | B23: 行业规划 | C23: 0
A24: 2070903 | B24: 旅游事业补助 | C24: 0
A25: 2070904 | B25: 地方旅游开发项目补助 | C25: 0
A26: 2070999 | B26: 其他旅游发展基金支出 | C26: 0
A27: 20710 | B27: 国家电影事业发展专项资金对应专项债务收入安排的支出 | C27: =SUM(C28:C29) -> 0
A28: 2071001 | B28: 资助城市影院 | C28: 0
A29: 2071099 | B29: 其他国家电影事业发展专项资金对应专项债务收入支出 | C29: 0
A30: 208 | B30: 社会保障和就业支出 | C30: =SUM(C31,C35,C39) -> 3
A31: 20822 | B31: 大中型水库移民后期扶持基金支出 | C31: =SUM(C32:C34) -> 3
A32: 2082201 | B32: 移民补助 | C32: 3
A33: 2082202 | B33: 基础设施建设和经济发展 | C33: 0
A34: 2082299 | B34: 其他大中型水库移民后期扶持基金支出 | C34: 0
A35: 20823 | B35: 小型水库移民扶助基金安排的支出 | C35: =SUM(C36:C38) -> 0
A36: 2082301 | B36: 移民补助 | C36: 0
A37: 2082302 | B37: 基础设施建设和经济发展 | C37: 0
A38: 2082399 | B38: 其他小型水库移民扶助基金支出 | C38: 0
A39: 20829 | B39: 小型水库移民扶助基金对应专项债务收入安排的支出 | C39: =SUM(C40:C41) -> 0
A40: 2082901 | B40: 基础设施建设和经济发展 | C40: 0
A41: 2082999 | B41: 其他小型水库移民扶助基金对应专项债务收入安排的支出 | C41: 0
A42: 211 | B42: 节能环保支出 | C42: =SUM(C43,C48) -> 0
A43: 21160 | B43: 可再生能源电价附加收入安排的支出 | C43: =SUM(C44:C47) -> 0
A44: 2116001 | B44: 风力发电补助 | C44: 0
A45: 2116002 | B45: 太阳能发电补助 | C45: 0
A46: 2116003 | B46: 生物质能发电补助 | C46: 0
A47: 2116099 | B47: 其他可再生能源电价附加收入安排的支出 | C47: 0
A48: 21161 | B48: 废弃电器电子产品处理基金支出 | C48: =SUM(C49:C52) -> 0
A49: 2116101 | B49: 回收处理费用补贴 | C49: 0
A50: 2116102 | B50: 信息系统建设 | C50: 0
A51: 2116103 | B51: 基金征管经费 | C51: 0
A52: 2116104 | B52: 其他废弃电器电子产品处理基金支出 | C52: 0
A53: 212 | B53: 城乡社区支出 | C53: =SUM(C54,C70,C74:C75,C81,C85,C89,C93,C99,C102) -> 77,366
A54: 21208 | B54: 国有土地使用权出让收入安排的支出 | C54: =SUM(C55:C69) -> 26,854
A55: 2120801 | B55: 征地和拆迁补偿支出 | C55: 22,123
A56: 2120802 | B56: 土地开发支出 | C56: 0
A57: 2120803 | B57: 城市建设支出 | C57: 0
A58: 2120804 | B58: 农村基础设施建设支出 | C58: 1,437
A59: 2120805 | B59: 补助被征地农民支出 | C59: 3,054
A60: 2120806 | B60: 土地出让业务支出 | C60: 0
A61: 2120807 | B61: 廉租住房支出 | C61: 0
A62: 2120809 | B62: 支付破产或改制企业职工安置费 | C62: 0
A63: 2120810 | B63: 棚户区改造支出 | C63: 0
A64: 2120811 | B64: 公共租赁住房支出 | C64: 0
A65: 2120813 | B65: 保障性住房租金补贴 | C65: 0
A66: 2120814 | B66: 农业生产发展支出 | C66: 240
A67: 2120815 | B67: 农村社会事业支出 | C67: 0
A68: 2120816 | B68: 农业农村生态环境支出 | C68: 0
A69: 2120899 | B69: 其他国有土地使用权出让收入安排的支出 | C69: 0
A70: 21210 | B70: 国有土地收益基金安排的支出 | C70: =SUM(C71:C73) -> 0
A71: 2121001 | B71: 征地和拆迁补偿支出 | C71: 0
A72: 2121002 | B72: 土地开发支出 | C72: 0
A73: 2121099 | B73: 其他国有土地收益基金支出 | C73: 0
A74: 21211 | B74: 农业土地开发资金安排的支出 | C74: 10
A75: 21213 | B75: 城市基础设施配套费安排的支出 | C75: =SUM(C76:C80) -> 0
A76: 2121301 | B76: 城市公共设施 | C76: 0
A77: 2121302 | B77: 城市环境卫生 | C77: 0
A78: 2121303 | B78: 公有房屋 | C78: 0
A79: 2121304 | B79: 城市防洪 | C79: 0
A80: 2121399 | B80: 其他城市基础设施配套费安排的支出 | C80: 0
A81: 21214 | B81: 污水处理费安排的支出 | C81: =SUM(C82:C84) -> 2
A82: 2121401 | B82: 污水处理设施建设和运营 | C82: 2
A83: 2121402 | B83: 代征手续费 | C83: 0
A84: 2121499 | B84: 其他污水处理费安排的支出 | C84: 0
A85: 21215 | B85: 土地储备专项债券收入安排的支出 | C85: =SUM(C86:C88) -> 0
A86: 2121501 | B86: 征地和拆迁补偿支出 | C86: 0
A87: 2121502 | B87: 土地开发支出 | C87: 0
A88: 2121599 | B88: 其他土地储备专项债券收入安排的支出 | C88: 0
A89: 21216 | B89: 棚户区改造专项债券收入安排的支出 | C89: =SUM(C90:C92) -> 50,500
A90: 2121601 | B90: 征地和拆迁补偿支出 | C90: 0
A91: 2121602 | B91: 土地开发支出 | C91: 0
A92: 2121699 | B92: 其他棚户区改造专项债券收入安排的支出 | C92: 50,500
A93: 21217 | B93: 城市基础设施配套费对应专项债务收入安排的支出 | C93: =SUM(C94:C98) -> 0
A94: 2121701 | B94: 城市公共设施 | C94: 0
A95: 2121702 | B95: 城市环境卫生 | C95: 0
A96: 2121703 | B96: 公有房屋 | C96: 0
A97: 2121704 | B97: 城市防洪 | C97: 0
A98: 2121799 | B98: 其他城市基础设施配套费对应专项债务收入安排的支出 | C98: 0
A99: 21218 | B99: 污水处理费对应专项债务收入安排的支出 | C99: =SUM(C100:C101) -> 0
A100: 2121801 | B100: 污水处理设施建设和运营 | C100: 0
A101: 2121899 | B101: 其他污水处理费对应专项债务收入安排的支出 | C101: 0
A102: 21219 | B102: 国有土地使用权出让收入对应专项债务收入安排的支出 | C102: =SUM(C103:C110) -> 0
A103: 2121901 | B103: 征地和拆迁补偿支出 | C103: 0
A104: 2121902 | B104: 土地开发支出 | C104: 0
A105: 2121903 | B105: 城市建设支出 | C105: 0
A106: 2121904 | B106: 农村基础设施建设支出 | C106: 0
A107: 2121905 | B107: 廉租住房支出 | C107: 0
A108: 2121906 | B108: 棚户区改造支出 | C108: 0
A109: 2121907 | B109: 公共租赁住房支出 | C109: 0
A110: 2121999 | B110: 其他国有土地使用权出让收入对应专项债务收入安排的支出 | C110: 0
A111: 213 | B111: 农林水支出 | C111: =SUM(C112,C117,C122,C127,C130) -> 27
A112: 21366 | B112: 大中型水库库区基金安排的支出 | C112: =SUM(C113:C116) -> 0
A113: 2136601 | B113: 基础设施建设和经济发展 | C113: 0
A114: 2136602 | B114: 解决移民遗留问题 | C114: 0
A115: 2136603 | B115: 库区防护工程维护 | C115: 0
A116: 2136699 | B116: 其他大中型水库库区基金支出 | C116: 0
A117: 21367 | B117: 三峡水库库区基金支出 | C117: =SUM(C118:C121) -> 0
A118: 2136701 | B118: 基础设施建设和经济发展 | C118: 0
A119: 2136702 | B119: 解决移民遗留问题 | C119: 0
A120: 2136703 | B120: 库区维护和管理 | C120: 0
A121: 2136799 | B121: 其他三峡水库库区基金支出 | C121: 0
A122: 21369 | B122: 国家重大水利工程建设基金安排的支出 | C122: =SUM(C123:C126) -> 27
A123: 2136901 | B123: 南水北调工程建设 | C123: 0
A124: 2136902 | B124: 三峡后续工作 | C124: 0
A125: 2136903 | B125: 地方重大水利工程建设 | C125: 0
A126: 2136999 | B126: 其他重大水利工程建设基金支出 | C126: 27
A127: 21370 | B127: 大中型水库库区基金对应专项债务收入安排的支出 | C127: =SUM(C128:C129) -> 0
A128: 2137001 | B128: 基础设施建设和经济发展 | C128: 0
A129: 2137099 | B129: 其他大中型水库库区基金对应专项债务收入支出 | C129: 0
A130: 21371 | B130: 国家重大水利工程建设基金对应专项债务收入安排的支出 | C130: =SUM(C131:C134) -> 0
A131: 2137101 | B131: 南水北调工程建设 | C131: 0
A132: 2137102 | B132: 三峡工程后续工作 | C132: 0
A133: 2137103 | B133: 地方重大水利工程建设 | C133: 0
A134: 2137199 | B134: 其他重大水利工程建设基金对应专项债务收入支出 | C134: 0
A135: 214 | B135: 交通运输支出 | C135: =SUM(C136,C141,C146,C155,C162,C171,C174,C177) -> 0
A136: 21460 | B136: 海南省高等级公路车辆通行附加费安排的支出 | C136: =SUM(C137:C140) -> 0
A137: 2146001 | B137: 公路建设 | C137: 0
A138: 2146002 | B138: 公路养护 | C138: 0
A139: 2146003 | B139: 公路还贷 | C139: 0
A140: 2146099 | B140: 其他海南省高等级公路车辆通行附加费安排的支出 | C140: 0
A141: 21462 | B141: 车辆通行费安排的支出 | C141: =SUM(C142:C145) -> 0
A142: 2146201 | B142: 公路还贷 | C142: 0
A143: 2146202 | B143: 政府还贷公路养护 | C143: 0
A144: 2146203 | B144: 政府还贷公路管理 | C144: 0
A145: 2146299 | B145: 其他车辆通行费安排的支出 | C145: 0
A146: 21464 | B146: 铁路建设基金支出 | C146: =SUM(C147:C154) -> 0
A147: 2146401 | B147: 铁路建设投资 | C147: 0
A148: 2146402 | B148: 购置铁路机车车辆 | C148: 0
A149: 2146403 | B149: 铁路还贷 | C149: 0
A150: 2146404 | B150: 建设项目铺底资金 | C150: 0
A151: 2146405 | B151: 勘测设计 | C151: 0
A152: 2146406 | B152: 注册资本金 | C152: 0
A153: 2146407 | B153: 周转资金 | C153: 0
A154: 2146499 | B154: 其他铁路建设基金支出 | C154: 0
A155: 21468 | B155: 船舶油污损害赔偿基金支出 | C155: =SUM(C156:C161) -> 0
A156: 2146801 | B156: 应急处置费用 | C156: 0
A157: 2146802 | B157: 控制清除污染 | C157: 0
A158: 2146803 | B158: 损失补偿 | C158: 0
A159: 2146804 | B159: 生态恢复 | C159: 0
A160: 2146805 | B160: 监视监测 | C160: 0
A161: 2146899 | B161: 其他船舶油污损害赔偿基金支出 | C161: 0
A162: 21469 | B162: 民航发展基金支出 | C162: =SUM(C163:C170) -> 0
A163: 2146901 | B163: 民航机场建设 | C163: 0
A164: 2146902 | B164: 空管系统建设 | C164: 0
A165: 2146903 | B165: 民航安全 | C165: 0
A166: 2146904 | B166: 航线和机场补贴 | C166: 0
A167: 2146906 | B167: 民航节能减排 | C167: 0
A168: 2146907 | B168: 通用航空发展 | C168: 0
A169: 2146908 | B169: 征管经费 | C169: 0
A170: 2146999 | B170: 其他民航发展基金支出 | C170: 0
A171: 21470 | B171: 海南省高等级公路车辆通行附加费对应专项债务收入安排的支出 | C171: =SUM(C172:C173) -> 0
A172: 2147001 | B172: 公路建设 | C172: 0
A173: 2147099 | B173: 其他海南省高等级公路车辆通行附加费对应专项债务收入安排的支出 | C173: 0
A174: 21471 | B174: 政府收费公路专项债券收入安排的支出 | C174: =SUM(C175:C176) -> 0
A175: 2147101 | B175: 公路建设 | C175: 0
A176: 2147199 | B176: 其他政府收费公路专项债券收入安排的支出 | C176: 0
A177: 21472 | B177: 车辆通行费对应专项债务收入安排的支出 | C177: 0
A178: 215 | B178: 资源勘探工业信息等支出 | C178: =C179 -> 0
A179: 21562 | B179: 农网还贷资金支出 | C179: =SUM(C180:C182) -> 0
A180: 2156201 | B180: 中央农网还贷资金支出 | C180: 0
A181: 2156202 | B181: 地方农网还贷资金支出 | C181: 0
A182: 2156299 | B182: 其他农网还贷资金支出 | C182: 0
A183: 217 | B183: 金融支出 | C183: =C184 -> 0
A184: 21704 | B184: 金融调控支出 | C184: =SUM(C185:C186) -> 0
A185: 2170402 | B185: 中央特别国债经营基金支出 | C185: 0
A186: 2170403 | B186: 中央特别国债经营基金财务支出 | C186: 0
A187: 229 | B187: 其他支出 | C187: =SUM(C188,C192,C201:C202) -> 27,715
A188: 22904 | B188: 其他政府性基金及对应专项债务收入安排的支出 | C188: =SUM(C189:C191) -> 27,500
A189: 2290401 | B189: 其他政府性基金安排的支出 | C189: 0
A190: 2290402 | B190: 其他地方自行试点项目收益专项债券收入安排的支出 | C190: 27,500
A191: 2290403 | B191: 其他政府性基金债务收入安排的支出 | C191: 0
A192: 22908 | B192: 彩票发行销售机构业务费安排的支出 | C192: =SUM(C193:C200) -> 0
A193: 2290802 | B193: 福利彩票发行机构的业务费支出 | C193: 0
A194: 2290803 | B194: 体育彩票发行机构的业务费支出 | C194: 0
A195: 2290804 | B195: 福利彩票销售机构的业务费支出 | C195: 0
A196: 2290805 | B196: 体育彩票销售机构的业务费支出 | C196: 0
A197: 2290806 | B197: 彩票兑奖周转金支出 | C197: 0
A198: 2290807 | B198: 彩票发行销售风险基金支出 | C198: 0
A199: 2290808 | B199: 彩票市场调控资金支出 | C199: 0
A200: 2290899 | B200: 其他彩票发行销售机构业务费安排的支出 | C200: 0
... 68 more rows

Sheet L07
A1: 2022年度沁源县政府性基金预算转移性收支表
A2: 录入07表
A3: 单位：万元
A4: 项目 | B4: 决算数 | C4: 项目 | D4: 决算数
A5: 政府性基金预算收入 | B5: 28,209 | C5: 政府性基金预算支出 | D5: 107,593
A6: 政府性基金预算上级补助收入 | B6: 2,813 | C6: 政府性基金预算补助下级支出
A7: 政府性基金转移支付收入 | B7: 2,813 | C7: 政府性基金转移支付支出
A8: 科学技术 | C8: 科学技术
A9: 文化旅游体育与传媒 | C9: 文化旅游体育与传媒
A10: 社会保障和就业 | B10: 5 | C10: 社会保障和就业
A11: 节能环保 | C11: 节能环保
A12: 城乡社区 | B12: 2,592 | C12: 城乡社区
A13: 农林水 | B13: 34 | C13: 农林水
A14: 交通运输 | C14: 交通运输
A15: 资源勘探工业信息等 | C15: 资源勘探工业信息等
A16: 其他收入 | B16: 182 | C16: 其他支出
A17: 政府性基金预算下级上解收入 | B17: 0 | C17: 政府性基金预算上解上级支出 | D17: 79
A18: 待偿债再融资专项债券上年结余 | B18: 0
A19: 政府性基金预算上年结余收入 | B19: 730
A20: 政府性基金预算调入资金 | B20: =B22 -> 0 | C20: 政府性基金预算调出资金 | D20: 566
A21: 中央单位特殊上缴利润专项收入
A22: 其他调入政府性基金预算资金 | B22: =SUM(B23:B24) -> 0
A23: 一般公共预算调入 | B23: 0
A24: 其他调入资金 | B24: 0
A25: 债务收入 | B25: =B26 -> 0 | C25: 债务还本支出 | D25: =D26 -> 0
A26: 地方政府债务收入 | B26: =B27 -> 0 | C26: 地方政府专项债务还本支出 | D26: 0
A27: 专项债务收入 | B27: 0 | C27: 抗疫特别国债还本支出
A28: 债务转贷收入 | B28: =B29 -> 78,000 | C28: 债务转贷支出 | D28: 0
A29: 地方政府专项债务转贷收入 | B29: 78,000
A30: 政府性基金预算省补助计划单列市收入 | B30: 0 | C30: 政府性基金预算省补助计划单列市支出 | D30: 0
A31: 政府性基金预算计划单列市上解省收入 | B31: 0 | C31: 政府性基金预算计划单列市上解省支出 | D31: 0
C32: 待偿债再融资专项债券结余
C33: 政府性基金预算年终结余 | D33: 1,514
A34: 收 入 总 计 | B34: =SUM(B5,B6,B17:B20,B25,B28,B30,B31) -> 109,752 | C34: 支 出 总 计 | D34: 109,752

Sheet L08
A1: 2022年度沁源县地方政府专项债务限额和余额情况表
G2: 录入08表
G3: 单位:万元
A4: 项目 | B4: 上年末地方政府债务余额 | C4: 本年地方政府债务(转贷)收入 | D4: 本年地方政府债务还本支出 | E4: 本年采用其他方式化解的债务本金 | F4: 年末地方政府债务余额 | G4: 年末地方政府债务限额
A5: 政府性基金预算 | B5: =SUM(B6:B20) -> 40,800 | C5: 78,000 | D5: 0 | E5: 0 | F5: 118,800 | G5: 118,800
A6: 国家电影事业发展专项资金 | B6: 0 | C6: 0 | D6: 0 | E6: 0 | F6: =B6+C6-D6-E6 -> 0 | G6: =C6+D6-E6-F6 -> 0
A7: 小型水库移民扶助基金 | B7: 0 | C7: 0 | D7: 0 | E7: 0 | F7: 0 | G7: 0
A8: 国有土地使用权出让 | B8: 0 | C8: 0 | D8: 0 | E8: 0 | F8: 0 | G8: 0
A9: 农业土地开发资金 | B9: 0 | C9: 0 | D9: 0 | E9: 0 | F9: 0 | G9: 0
A10: 城市基础设施配套费 | B10: 0 | C10: 0 | D10: 0 | E10: 0 | F10: 0 | G10: 0
A11: 污水处理费 | B11: 0 | C11: 0 | D11: 0 | E11: 0 | F11: 0 | G11: 0
A12: 土地储备专项债券 | B12: 0 | C12: 0 | D12: 0 | E12: 0 | F12: 0 | G12: 0
A13: 棚户区改造专项债券 | B13: 18,100 | C13: 50,500 | D13: 0 | E13: 0 | F13: 68,600
A14: 大中型水库库区基金 | B14: 0 | C14: 0 | D14: 0 | E14: 0 | F14: 0 | G14: 0
A15: 国家重大水利工程建设基金 | B15: 0 | C15: 0 | D15: 0 | E15: 0 | F15: 0 | G15: 0
A16: 海南省高等级公路车辆通行附加费 | B16: 0 | C16: 0 | D16: 0 | E16: 0 | F16: 0 | G16: 0
A17: 政府收费公路专项债券 | B17: 0 | C17: 0 | D17: 0 | E17: 0 | F17: 0 | G17: 0
A18: 车辆通行费 | B18: 0 | C18: 0 | D18: 0 | E18: 0 | F18: 0 | G18: 0
A19: 其他地方自行试点项目收益专项债券 | B19: 22,700 | C19: 27,500 | D19: 0 | E19: 0 | F19: 50,200
A20: 其他政府性基金 | B20: 0 | C20: 0 | D20: 0 | E20: 0 | F20: 0 | G20: 0

Sheet 国有资本经营预算
A9: 第三部分:国有资本经营预算

Sheet L9
A1: 2022年度沁源县国有资本经营预算收支表
A2: 录入09表
A3: 单位：万元
A4: 科目编码 | B4: 预算科目 | C4: 预算数 | D4: 调整预算数 | E4: 决算数 | F4: 科目编码 | G4: 预算科目 | H4: 预算数 | I4: 调整预算数 | J4: 决算数
B5: 国有资本经营预算收入 | C5: =C6 -> 0 | D5: =D6 -> 0 | E5: =E6 -> 0 | G5: 国有资本经营预算支出 | H5: =H6+H9 -> 0 | I5: =I6+I9 -> 15 | J5: =J6+J9 -> 15
A6: 103 | B6: 非税收入 | C6: =C7 -> 0 | D6: =D7 -> 0 | E6: =E7 -> 0 | F6: 208 | G6: 社会保障和就业支出 | H6: =H7 -> 0 | I6: =I7 -> 0 | J6: =J7 -> 0
A7: 10306 | B7: 国有资本经营收入 | C7: =C8+C40+C45+C51+C55 -> 0 | D7: =D8+D40+D45+D51+D55 -> 0 | E7: =E8+E40+E45+E51+E55 -> 0 | F7: 20804 | G7: 补充全国社会保障基金 | H7: =H8 -> 0 | I7: =I8 -> 0 | J7: =J8 -> 0
A8: 1030601 | B8: 利润收入 | C8: =SUM(C9:C39) -> 0 | D8: =SUM(D9:D39) -> 0 | E8: =SUM(E9:E39) -> 0 | F8: 2080451 | G8: 国有资本经营预算补充社保基金支出 | H8: 0 | I8: 0 | J8: 0
A9: 103060103 | B9: 烟草企业利润收入 | C9: 0 | D9: 0 | E9: 0 | F9: 223 | G9: 国有资本经营预算支出 | H9: =H10+H21+H31+H33 -> 0 | I9: =I10+I21+I31+I33 -> 15 | J9: =J10+J21+J31+J33 -> 15
A10: 103060104 | B10: 石油石化企业利润收入 | C10: 0 | D10: 0 | E10: 0 | F10: 22301 | G10: 解决历史遗留问题及改革成本支出 | H10: =SUM(H11:H20) -> 0 | I10: =SUM(I11:I20) -> 15 | J10: =SUM(J11:J20) -> 15
A11: 103060105 | B11: 电力企业利润收入 | C11: 0 | D11: 0 | E11: 0 | F11: 2230101 | G11: 厂办大集体改革支出 | H11: 0 | I11: 0 | J11: 0
A12: 103060106 | B12: 电信企业利润收入 | C12: 0 | D12: 0 | E12: 0 | F12: 2230102 | G12: “三供一业”移交补助支出 | H12: 0 | I12: 0 | J12: 0
A13: 103060107 | B13: 煤炭企业利润收入 | C13: 0 | D13: 0 | E13: 0 | F13: 2230103 | G13: 国有企业办职教幼教补助支出 | H13: 0 | I13: 0 | J13: 0
A14: 103060108 | B14: 有色冶金采掘企业利润收入 | C14: 0 | D14: 0 | E14: 0 | F14: 2230104 | G14: 国有企业办公共服务机构移交补助支出 | H14: 0 | I14: 0 | J14: 0
A15: 103060109 | B15: 钢铁企业利润收入 | C15: 0 | D15: 0 | E15: 0 | F15: 2230105 | G15: 国有企业退休人员社会化管理补助支出 | H15: 0 | I15: 15 | J15: 15
A16: 103060112 | B16: 化工企业利润收入 | C16: 0 | D16: 0 | E16: 0 | F16: 2230106 | G16: 国有企业棚户区改造支出 | H16: 0 | I16: 0 | J16: 0
A17: 103060113 | B17: 运输企业利润收入 | C17: 0 | D17: 0 | E17: 0 | F17: 2230107 | G17: 国有企业改革成本支出 | H17: 0 | I17: 0 | J17: 0
A18: 103060114 | B18: 电子企业利润收入 | C18: 0 | D18: 0 | E18: 0 | F18: 2230108 | G18: 离休干部医药费补助支出 | H18: 0 | I18: 0 | J18: 0
A19: 103060115 | B19: 机械企业利润收入 | C19: 0 | D19: 0 | E19: 0 | F19: 2230109 | G19: 金融企业改革性支出 | H19: 0 | I19: 0 | J19: 0
A20: 103060116 | B20: 投资服务企业利润收入 | C20: 0 | D20: 0 | E20: 0 | F20: 2230199 | G20: 其他解决历史遗留问题及改革成本支出 | H20: 0 | I20: 0 | J20: 0
A21: 103060117 | B21: 纺织轻工企业利润收入 | C21: 0 | D21: 0 | E21: 0 | F21: 22302 | G21: 国有企业资本金注入 | H21: =SUM(H22:H30) -> 0 | I21: =SUM(I22:I30) -> 0 | J21: =SUM(J22:J30) -> 0
A22: 103060118 | B22: 贸易企业利润收入 | C22: 0 | D22: 0 | E22: 0 | F22: 2230201 | G22: 国有经济结构调整支出 | H22: 0 | I22: 0 | J22: 0
A23: 103060119 | B23: 建筑施工企业利润收入 | C23: 0 | D23: 0 | E23: 0 | F23: 2230202 | G23: 公益性设施投资支出 | H23: 0 | I23: 0 | J23: 0
A24: 103060120 | B24: 房地产企业利润收入 | C24: 0 | D24: 0 | E24: 0 | F24: 2230203 | G24: 前瞻性战略性产业发展支出 | H24: 0 | I24: 0 | J24: 0
A25: 103060121 | B25: 建材企业利润收入 | C25: 0 | D25: 0 | E25: 0 | F25: 2230204 | G25: 生态环境保护支出 | H25: 0 | I25: 0 | J25: 0
A26: 103060122 | B26: 境外企业利润收入 | C26: 0 | D26: 0 | E26: 0 | F26: 2230205 | G26: 支持科技进步支出 | H26: 0 | I26: 0 | J26: 0
A27: 103060123 | B27: 对外合作企业利润收入 | C27: 0 | D27: 0 | E27: 0 | F27: 2230206 | G27: 保障国家经济安全支出 | H27: 0 | I27: 0 | J27: 0
A28: 103060124 | B28: 医药企业利润收入 | C28: 0 | D28: 0 | E28: 0 | F28: 2230207 | G28: 对外投资合作支出 | H28: 0 | I28: 0 | J28: 0
A29: 103060125 | B29: 农林牧渔企业利润收入 | C29: 0 | D29: 0 | E29: 0 | F29: 2230208 | G29: 金融企业资本性支出 | H29: 0 | I29: 0 | J29: 0
A30: 103060126 | B30: 邮政企业利润收入 | C30: 0 | D30: 0 | E30: 0 | F30: 2230299 | G30: 其他国有企业资本金注入 | H30: 0 | I30: 0 | J30: 0
A31: 103060127 | B31: 军工企业利润收入 | C31: 0 | D31: 0 | E31: 0 | F31: 22303 | G31: 国有企业政策性补贴(款) | H31: =H32 -> 0 | I31: =I32 -> 0 | J31: =J32 -> 0
A32: 103060128 | B32: 转制科研院所利润收入 | C32: 0 | D32: 0 | E32: 0 | F32: 2230301 | G32: 国有企业政策性补贴(项) | H32: 0 | I32: 0 | J32: 0
A33: 103060129 | B33: 地质勘查企业利润收入 | C33: 0 | D33: 0 | E33: 0 | F33: 22399 | G33: 其他国有资本经营预算支出(款) | H33: =H34 -> 0 | I33: =I34 -> 0 | J33: =J34 -> 0
A34: 103060130 | B34: 卫生体育福利企业利润收入 | C34: 0 | D34: 0 | E34: 0 | F34: 2239999 | G34: 其他国有资本经营预算支出(项) | H34: 0 | I34: 0 | J34: 0
A35: 103060131 | B35: 教育文化广播企业利润收入 | C35: 0 | D35: 0 | E35: 0
A36: 103060132 | B36: 科学研究企业利润收入 | C36: 0 | D36: 0 | E36: 0
A37: 103060133 | B37: 机关社团所属企业利润收入 | C37: 0 | D37: 0 | E37: 0
A38: 103060134 | B38: 金融企业利润收入 | C38: 0 | D38: 0 | E38: 0
A39: 103060198 | B39: 其他国有资本经营预算企业利润收入 | C39: 0 | D39: 0 | E39: 0
A40: 1030602 | B40: 股利、股息收入 | C40: =SUM(C41:C44) -> 0 | D40: =SUM(D41:D44) -> 0 | E40: =SUM(E41:E44) -> 0
A41: 103060202 | B41: 国有控股公司股利、股息收入 | C41: 0 | D41: 0 | E41: 0
A42: 103060203 | B42: 国有参股公司股利、股息收入 | C42: 0 | D42: 0 | E42: 0
A43: 103060204 | B43: 金融企业股利、股息收入 | C43: 0 | D43: 0 | E43: 0
A44: 103060298 | B44: 其他国有资本经营预算企业股利、股息收入 | C44: 0 | D44: 0 | E44: 0
A45: 1030603 | B45: 产权转让收入 | C45: =SUM(C46:C50) -> 0 | D45: =SUM(D46:D50) -> 0 | E45: =SUM(E46:E50) -> 0
A46: 103060301 | B46: 国有股减持收入 | C46: 0 | D46: 0 | E46: 0
A47: 103060304 | B47: 国有股权、股份转让收入 | C47: 0 | D47: 0 | E47: 0
A48: 103060305 | B48: 国有独资企业产权转让收入 | C48: 0 | D48: 0 | E48: 0
A49: 103060307 | B49: 金融企业产权转让收入 | C49: 0 | D49: 0 | E49: 0
A50: 103060398 | B50: 其他国有资本经营预算企业产权转让收入 | C50: 0 | D50: 0 | E50: 0
A51: 1030604 | B51: 清算收入 | C51: =SUM(C52:C54) -> 0 | D51: =SUM(D52:D54) -> 0 | E51: =SUM(E52:E54) -> 0
A52: 103060401 | B52: 国有股权、股份清算收入 | C52: 0 | D52: 0 | E52: 0
A53: 103060402 | B53: 国有独资企业清算收入 | C53: 0 | D53: 0 | E53: 0
A54: 103060498 | B54: 其他国有资本经营预算企业清算收入 | C54: 0 | D54: 0 | E54: 0
A55: 1030698 | B55: 其他国有资本经营预算收入 | C55: 0 | D55: 0 | E55: 0

Sheet L10
A1: 2022年度沁源县国有资本经营预算转移性收支表
A2: 录入10表
A3: 单位：万元
A4: 项目 | B4: 决算数 | C4: 项目 | D4: 决算数
A5: 国有资本经营预算收入 | B5: ='[1]L14'!E5 -> 0 | C5: 国有资本经营预算支出 | D5: ='[1]L14'!J5 -> 15
A6: 国有资本经营预算上级补助收入 | B6: 8 | C6: 国有资本经营预算补助下级支出 | D6: 0
A7: 国有资本经营预算下级上解收入 | B7: 0 | C7: 国有资本经营预算上解上级支出 | D7: 0
A8: 国有资本经营预算上年结余收入 | B8: 12 | C8: 国有资本经营预算调出资金 | D8: 0
A9: 国有资本经营预算省补助计划单列市收入 | B9: 0 | C9: 国有资本经营预算省补助计划单列市支出 | D9: 0
A10: 国有资本经营预算计划单列市上解省收入 | B10: 0 | C10: 国有资本经营预算计划单列市上解省支出 | D10: 0
C11: 国有资本经营预算年终结余 | D11: =B12-SUM(D5:D10) -> 5
A12: 收 入 总 计 | B12: =SUM(B5:B10) -> 20 | C12: 支 出 总 计 | D12: =SUM(D5:D11) -> 20

Sheet 社会保险基金预算
A9: 第四部分:社会保险基金预算

Sheet L11
A1: 2022年度沁源县社会保险基金预算收入表
A2: 录入11表
A3: 单位：万元
A4: 项 目 | B4: 合计 | C4: 企业职工基本养老保险基金 | D4: 城乡居民基本养老保险基金 | E4: 机关事业单位基本养老保险基金 | F4: 职工基本医疗保险(含生育保险)基金 | G4: 城乡居民基本医疗保险基金 | H4: 工伤保险基金 | I4: 失业保险基金
A5: 一、收入 | B5: =SUM(C5:I5) -> 20,233 | C5: 0 | D5: 4,983 | E5: 15,250 | F5: 0 | G5: 0 | H5: 0 | I5: 0
A6: 其中:社会保险费收入 | B6: 8,051 | C6: 0 | D6: 1,041 | E6: 7,010 | F6: 0 | G6: 0 | H6: 0 | I6: 0
A7: 财政补贴收入 | B7: 11,794 | C7: 0 | D7: 3,732 | E7: 8,062 | F7: 0 | G7: 0 | H7: 0 | I7: 0
A8: 利息收入 | B8: 225 | C8: 0 | D8: 174 | E8: 51 | F8: 0 | G8: 0 | H8: 0 | I8: 0
A9: 委托投资收益 | B9: 17 | C9: 0 | D9: 17 | E9: 0 | F9: 0 | G9: 0 | H9: 0 | I9: 0
A10: 转移收入 | B10: 128 | C10: 0 | D10: 1 | E10: 127 | F10: 0 | G10: 0 | H10: 0 | I10: 0
A11: 其他收入 | B11: 1 | C11: 0 | D11: 1 | E11: 0 | F11: 0 | G11: 0 | H11: 0 | I11: 0
A12: 全国统筹调剂资金收入 | B12: 0 | C12: 0 | D12: 0 | E12: 0 | F12: 0 | G12: 0 | H12: 0 | I12: 0

Sheet L12
A1: 2022年度沁源县社会保险基金预算支出表
A2: 录入12表
A3: 单位：万元
A4: 项 目 | B4: 合计 | C4: 企业职工基本养老保险基金 | D4: 城乡居民基本养老保险基金 | E4: 机关事业单位基本养老保险基金 | F4: 职工基本医疗保险(含生育保险)基金 | G4: 城乡居民基本医疗保险基金 | H4: 工伤保险基金 | I4: 失业保险基金
A5: 一、支出 | B5: =SUM(C5:I5) -> 19,959 | C5: 0 | D5: 4,084 | E5: 15,875 | F5: 0 | G5: 0 | H5: 0 | I5: 0
A6: 其中:社会保险待遇支出 | B6: =SUM(C6:I6) -> 19,953 | C6: 0 | D6: 4,078 | E6: 15,875 | F6: 0 | G6: 0 | H6: 0 | I6: 0
A7: 转移支出 | B7: =SUM(C7:I7) -> 6 | C7: 0 | D7: 6 | E7: 0 | F7: 0 | G7: 0 | H7: 0 | I7: 0
A8: 其他支出 | B8: =SUM(C8:I8) -> 0 | C8: 0 | D8: 0 | E8: 0 | F8: 0 | G8: 0 | H8: 0 | I8: 0
A9: 全国统筹调剂资金支出 | B9: =SUM(C9:I9) -> 0 | C9: 0 | D9: 0 | E9: 0 | F9: 0 | G9: 0 | H9: 0 | I9: 0

Sheet 补充资料
A9: 第五部分:补充资料

Sheet L13
A1: 2022年三公经费机构运行信息表 | E1: 机构运行信息表
H2: 表13
E3: 2022年度 | H3: 金额单位：元
A4: 项 目 | B4: 行次 | C4: 年初预算数 | D4: 全年预算数 | E4: 统计数 | F4: 项 目 | G4: 行次 | H4: 统计数
A5: 栏 次 | C5: 1 | D5: 2 | E5: 3 | F5: 栏 次 | H5: 4
A6: 一、“三公”经费支出 | B6: 1 | C6: — | D6: — | E6: — | F6: 四、机关运行经费 | G6: 27 | H6: 50,058,265.14
A7: （一）支出合计 | B7: 2 | C7: 7,548,859.00 | D7: 7,553,099.00 | E7: 7,023,953.52 | F7: （一）行政单位 | G7: 28 | H7: 50,058,265.14
A8: 1．因公出国（境）费 | B8: 3 | F8: （二）参照公务员法管理事业单位 | G8: 29
A9: 2．公务用车购置及运行维护费 | B9: 4 | C9: 6,200,000.00 | D9: 6,207,400.00 | E9: 5,733,424.52 | F9: 五、资产信息 | G9: 30 | H9: —
A10: （1）公务用车购置费 | B10: 5 | C10: 3,000,000.00 | D10: 3,000,000.00 | E10: 2,886,663.14 | F10: （一）车辆数合计（辆） | G10: 31 | H10: 778
A11: （2）公务用车运行维护费 | B11: 6 | C11: 3,200,000.00 | D11: 3,207,400.00 | E11: 2,846,761.38 | F11: 1．副部（省）级及以上领导用车 | G11: 32
A12: 3．公务接待费 | B12: 7 | C12: 1,348,859.00 | D12: 1,345,699.00 | E12: 1,290,529.00 | F12: 2．主要领导干部用车 | G12: 33
A13: （1）国内接待费 | B13: 8 | C13: — | D13: — | E13: 1,290,529.00 | F13: 3．机要通信用车 | G13: 34 | H13: 1
A14: 其中：外事接待费 | B14: 9 | C14: — | D14: — | F14: 4．应急保障用车 | G14: 35 | H14: 3
A15: （2）国（境）外接待费 | B15: 10 | C15: — | D15: — | F15: 5．执法执勤用车 | G15: 36 | H15: 29
A16: （二）相关统计数 | B16: 11 | C16: — | D16: — | E16: — | F16: 6．特种专业技术用车 | G16: 37 | H16: 54
A17: 1．因公出国（境）团组数（个） | B17: 12 | C17: — | D17: — | F17: 7．离退休干部用车 | G17: 38
A18: 2．因公出国（境）人次数（人） | B18: 13 | C18: — | D18: — | F18: 8．其他用车 | G18: 39 | H18: 691
A19: 3．公务用车购置数（辆） | B19: 14 | C19: — | D19: — | E19: 16 | F19: （二）单价100万元（含）以上设备（不含车辆） | G19: 40 | H19: 5
A20: 4．公务用车保有量（辆） | B20: 15 | C20: — | D20: — | E20: 134 | F20: 六、政府采购支出信息 | G20: 41 | H20: —
A21: 5．国内公务接待批次（个） | B21: 16 | C21: — | D21: — | E21: 367 | F21: （一）政府采购支出合计 | G21: 42 | H21: 192,515,298.32
A22: 其中：外事接待批次（个） | B22: 17 | C22: — | D22: — | F22: 1．政府采购货物支出 | G22: 43 | H22: 45,811,415.64
A23: 6．国内公务接待人次（人） | B23: 18 | C23: — | D23: — | E23: 1,770 | F23: 2．政府采购工程支出 | G23: 44 | H23: 77,387,537.65
A24: 其中：外事接待人次（人） | B24: 19 | C24: — | D24: — | F24: 3．政府采购服务支出 | G24: 45 | H24: 69,316,345.03
A25: 7．国（境）外公务接待批次（个） | B25: 20 | C25: — | D25: — | F25: （二）政府采购授予中小企业合同金额 | G25: 46 | H25: 12,522,254.00
A26: 8．国（境）外公务接待人次（人） | B26: 21 | C26: — | D26: — | F26: 其中：授予小微企业合同金额 | G26: 47 | H26: 12,522,254.00
A27: 二、会议费 | B27: 22 | C27: — | D27: — | E27: 1,387,510.90 | F27: 七、由养老保险基金发放养老金的离退休人员（人） | G27: 48 | H27: 2,655
A28: 三、培训费 | B28: 23 | C28: — | D28: — | E28: 4,388,828.49 | F28: （一）离休人员 | G28: 49
B29: 24 | F29: （二）财政拨款退休人员 | G29: 50 | H29: 2,635
B30: 25 | F30: （三）经费自理退休人员 | G30: 51 | H30: 20
B31: 26 | G31: 52
A32: 注:14、15行填列使用财政拨款负担费用所对应的车辆情况；48行填列已经实施养老保险制度改革且由社会保险经办机构从养老保险基金中发放养老金的离退休人数。49行填列由养老保险基金发放离休费的离休人数；50行填列属于财政拨款退休人员，同时已参加养老保险由养老保险基金发放养老金的退休人数；51行填列属于经费自理退休人员，同时已参加养老保险由养老保险基金发放养老金的退休人数。(49+50+51)行合计数等于48行。
